bitfinex/quotes_BTCUSD_20220101
["timestamp","ask_amount","ask_price","bid_price","bid_amount"]
[1640999952585,0.00119599,46873.0,46868.0,0.1]
[1640999952989,0.00119599,46873.0,46866.0,0.00973578]
[1640999953585,0.05454599,46873.0,46866.0,0.00973578]
[1640999953788,0.27683388,46869.0,46866.0,0.00973578]
[1640999954187,0.27683388,46869.0,46857.0,0.38340159]
[1640999954188,1.15,46867.0,46857.0,0.38340159]
[1640999954487,0.27683388,46869.0,46857.0,0.38340159]
[1640999954488,0.00125458,46866.0,46857.0,0.38340159]
[1640999954688,0.00244195,46866.0,46857.0,0.38340159]
[1640999954890,0.29517109,46865.0,46858.0,0.2688186]
[1640999955090,0.29517109,46865.0,46857.0,0.38340159]
[1640999955329,0.29517109,46865.0,46857.0,0.36552]
[1640999955730,0.29517109,46865.0,46857.0,0.418873]
[1640999955927,0.29517109,46865.0,46858.0,0.216452]
[1640999956527,0.29517109,46865.0,46859.0,0.106704]
[1640999956728,0.29517109,46865.0,46860.0,0.216443]
[1640999957628,0.00119622,46864.0,46860.0,0.216443]
[1640999958430,7.211e-05,46863.0,46860.0,0.266443]
[1640999958629,0.02893855,46869.0,46861.0,1.13]
[1640999958831,0.00944029,46869.0,46862.0,0.4852486]
[1640999959099,0.00944029,46869.0,46862.0,0.41978]
[1640999959301,0.00944029,46869.0,46862.0,0.6796775]
[1640999959699,0.25629555,46874.0,46865.0,0.09303998]
[1640999959899,0.00861,46874.0,46867.0,0.09495797]
[1640999960103,0.00861,46874.0,46868.0,0.05]
[1640999961100,0.00861,46874.0,46866.0,0.3977448]
[1640999961301,0.00861,46874.0,46867.0,0.216399]
[1640999961700,0.00861,46874.0,46869.0,0.053342]
[1640999962303,0.38698917,46874.0,46869.0,0.053342]
[1640999962601,0.38698917,46874.0,46866.0,0.0499]
[1640999962825,0.38673232,46874.0,46866.0,0.103245]
[1640999963026,0.38173232,46874.0,46867.0,0.05]
[1640999963232,0.38173232,46874.0,46864.0,0.05]
[1640999963425,0.38173232,46874.0,46863.0,0.0048]
[1640999963627,0.26326434,46873.0,46863.0,0.0048]
[1640999963828,0.45476249,46874.0,46865.0,0.053347]
[1640999964027,0.40141349,46874.0,46865.0,0.053347]
[1640999964227,0.40141349,46874.0,46865.0,0.156694]
[1640999964427,0.32985612,46869.0,46865.0,0.05]
[1640999964627,0.32985612,46869.0,46861.0,0.05]
[1640999965026,0.32985612,46869.0,46862.0,0.216424]
[1640999965327,0.32985612,46869.0,46860.0,0.88226856]
[1640999965527,0.3397616,46869.0,46861.0,0.216434]
[1640999966129,0.3397616,46869.0,46863.0,0.05335]
[1640999966327,0.3397616,46869.0,46864.0,0.216419]
[1640999966580,0.359038,46869.0,46864.0,0.266419]
[1640999966778,0.34913252,46869.0,46864.0,0.319764]
[1640999966980,0.0192764,46869.0,46864.0,0.319764]
[1640999967178,0.0192764,46869.0,46864.0,0.419764]
[1640999967381,0.0192764,46869.0,46865.0,0.106693]
[1640999967582,0.0192764,46869.0,46866.0,0.216408]
[1640999967781,0.01887043,46872.0,46866.0,0.269752]
[1640999967984,0.01887043,46872.0,46866.0,0.319752]
[1640999968287,0.01887043,46872.0,46866.0,0.419752]
[1640999968482,0.01887043,46872.0,46869.0,0.053343]
[1640999968981,0.31762381,46874.0,46869.0,0.053343]
[1640999969183,7.26e-05,46871.0,46869.0,0.053343]
[1640999969382,0.15,46870.0,46869.0,0.053343]
[1640999969583,0.15,46870.0,46868.0,0.05]
[1640999969782,0.15,46869.0,46868.0,0.05]
[1640999970550,0.15,46869.0,46866.0,0.51552]
[1640999970749,7.26e-05,46871.0,46867.0,0.216399]
[1640999970953,7.26e-05,46871.0,46866.0,0.51552]
[1640999970954,7.26e-05,46871.0,46866.0,0.568866]
[1640999971950,7.26e-05,46871.0,46867.0,0.216401]
[1640999972751,7.26e-05,46871.0,46867.0,0.269746]
[1640999973050,7.26e-05,46871.0,46867.0,0.323089]
[1640999973450,7.26e-05,46871.0,46867.0,0.423089]
[1640999973652,7.26e-05,46871.0,46868.0,0.053343]
[1640999973852,7.26e-05,46871.0,46869.0,0.269734]
[1640999974091,0.15,46870.0,46869.0,0.269734]
[1640999974392,0.15,46870.0,46869.0,0.933075]
[1640999974591,0.15,46870.0,46869.0,1.033075]
[1640999974791,0.15,46870.0,46869.0,0.423075]
[1640999974992,7.26e-05,46871.0,46869.0,0.423075]
[1640999975199,7.26e-05,46871.0,46870.0,2.05532452]
[1640999975395,7.26e-05,46871.0,46870.0,2.10532452]
[1640999975592,7.26e-05,46871.0,46870.0,2.20532452]
[1640999979326,7.26e-05,46871.0,46870.0,1.84020766]
[1640999980626,7.26e-05,46871.0,46870.0,1.83520766]
[1640999981486,7.26e-05,46871.0,46870.0,0.77630201]
[1640999981684,0.00316898,46874.0,46871.0,1.193333]
[1640999981886,0.00316898,46874.0,46872.0,0.269706]
[1640999982487,0.00316898,46874.0,46873.0,0.216368]
[1640999984394,0.01204354,46879.0,46875.0,0.00121529]
[1640999984593,0.01204354,46879.0,46878.0,1.14]
[1640999984792,0.01204354,46879.0,46878.0,1.356339]
[1640999984993,0.01204354,46879.0,46878.0,1.456339]
[1640999985633,0.02065254,46879.0,46878.0,1.456339]
[1640999988979,0.02065254,46879.0,46878.0,0.316339]
[1640999989182,0.02065254,46879.0,46878.0,0.56817499]
[1640999989881,0.02065254,46879.0,46878.0,0.316339]
[1640999990085,0.02072516,46879.0,46878.0,0.316339]
[1640999990282,0.02072516,46879.0,46878.0,0.216339]
[1640999990483,0.02072516,46879.0,46878.0,0.316339]
[1640999991284,0.02072516,46879.0,46878.0,0.93675644]
[1640999991687,0.02072516,46879.0,46878.0,0.55675644]
[1640999994052,0.01990282,46879.0,46878.0,0.55675644]
[1640999994254,0.2,46881.0,46880.0,1.356628]
[1640999994451,0.2,46881.0,46880.0,1.434588]
[1640999994650,0.2004,46882.0,46880.0,1.534588]
[1640999994849,0.2004,46882.0,46881.0,1.61793019]
[1640999995050,0.2004,46882.0,46881.0,1.71793019]
[1640999995551,0.0003,46885.0,46882.0,1.14]
[1640999995552,0.0004,46883.0,46882.0,1.14]
[1640999995751,0.0004,46883.0,46882.0,1.356314]
[1640999995952,0.0004,46883.0,46882.0,1.456314]
[1640999996349,0.0004,46883.0,46882.0,0.316314]
[1640999996582,0.00901,46883.0,46882.0,0.216314]
[1640999996982,0.00901,46883.0,46881.0,0.053309]
[1640999997181,0.00901,46883.0,46882.0,1.206314]
[1640999997883,0.00901,46883.0,46882.0,0.216314]
[1640999998082,0.00901,46883.0,46882.0,0.266314]
[1640999998487,0.00401,46883.0,46882.0,1.406314]
[1640999998786,0.00401,46883.0,46882.0,0.419633]
[1640999999184,0.00401,46883.0,46882.0,1.11112143]
[1640999999386,0.00401,46883.0,46882.0,1.11319546]
[1640999999583,0.00401,46883.0,46882.0,0.42092581]
[1640999999786,0.0003,46885.0,46883.0,0.51599]
[1641000000634,0.00901,46884.0,46883.0,0.732298]
[1641000000833,0.00875323,46884.0,46883.0,0.51599]
[1641000001535,0.00875323,46884.0,46883.0,0.61599]
[1641000002137,0.00875323,46884.0,46883.0,0.832298]
[1641000002934,0.00875323,46884.0,46883.0,1.352298]
[1641000005498,0.00875323,46884.0,46883.0,1.402298]
[1641000008039,0.00766223,46885.0,46884.0,1.356303]
[1641000008439,0.00766223,46885.0,46884.0,1.456303]
[1641000008440,0.0002,46885.0,46884.0,1.456303]
[1641000008640,0.00881,46885.0,46884.0,1.456303]
[1641000009440,0.00881,46885.0,46884.0,0.316303]
[1641000009639,0.00881,46885.0,46884.0,0.56542036]
[1641000010040,0.00881,46885.0,46884.0,1.23542036]
[1641000010441,0.00881,46885.0,46884.0,0.986303]
[1641000010643,0.00881,46885.0,46884.0,1.22765971]
[1641000010843,0.00881,46885.0,46884.0,0.55765971]
[1641000011043,0.00881,46885.0,46884.0,1.03765971]
[1641000011248,0.01971365,46888.0,46887.0,1.356287]
[1641000011485,0.01971365,46888.0,46887.0,1.406287]
[1641000011685,0.01971365,46888.0,46887.0,1.506287]
[1641000011886,0.01075782,46889.0,46887.0,1.5075524]
[1641000012085,0.01075782,46889.0,46888.0,1.356279]
[1641000012488,0.01075782,46889.0,46888.0,1.456279]
[1641000013087,0.0002,46891.0,46890.0,1.13987206]
[1641000013289,0.0004,46898.0,46897.0,1.16417234]
[1641000013490,0.0004,46898.0,46897.0,1.38039734]
[1641000013688,5.99085094,46908.0,46898.0,1.14]
[1641000013887,5.99085094,46908.0,46901.0,0.00129262]
[1641000014088,5.99085094,46908.0,46903.0,0.26641886]
[1641000014286,5.99085094,46908.0,46904.0,0.053293]
[1641000014488,5.99085094,46908.0,46903.0,0.05329299]
[1641000014688,5.99085094,46908.0,46904.0,0.106587]
[1641000015331,5.99085094,46908.0,46905.0,0.40531111]
[1641000015533,5.99085094,46908.0,46905.0,0.50531111]
[1641000015933,5.99085094,46908.0,46905.0,0.40531111]
[1641000016132,5.99085094,46908.0,46905.0,0.12566673]
[1641000016532,5.99085094,46908.0,46905.0,0.17566673]
[1641000016734,5.99085094,46908.0,46905.0,0.12566673]
[1641000017339,5.99085094,46908.0,46905.0,0.10659]
[1641000018534,5.99085094,46908.0,46905.0,0.15659]
[1641000018737,5.99085094,46908.0,46905.0,0.10659]
[1641000019002,6.26711918,46908.0,46905.0,0.10659]
[1641000020005,5.99085094,46908.0,46905.0,0.10659]
[1641000020408,5.99085094,46908.0,46907.0,0.23989443]
[1641000021009,5.99085094,46908.0,46905.0,0.27728425]
[1641000022007,5.99085094,46908.0,46905.0,0.17728425]
[1641000022309,5.99119544,46908.0,46905.0,0.15659]
[1641000023949,5.99980544,46908.0,46905.0,0.15659]
[1641000024150,6.00841544,46908.0,46905.0,0.15659]
[1641000024749,0.2524773,46907.0,46905.0,0.10659]
[1641000024948,6.00841544,46908.0,46905.0,0.10659]
[1641000026597,0.00118623,46907.0,46905.0,0.10659]
[1641000026900,0.00238132,46907.0,46905.0,0.10659]
[1641000027297,0.00238132,46907.0,46905.0,0.15659]
[1641000027698,0.00238132,46907.0,46906.0,1.37465399]
[1641000027898,0.00238132,46907.0,46905.0,0.15659]
[1641000027899,6.00854329,46908.0,46907.0,0.79]
[1641000028101,6.00854329,46908.0,46907.0,0.94]
[1641000028499,6.00854329,46908.0,46907.0,0.15]
[1641000029099,6.00854329,46908.0,46907.0,0.1710747]
[1641000029299,6.00854329,46908.0,46907.0,0.0710747]
[1641000029500,6.00854329,46908.0,46907.0,0.0210747]
[1641000031064,6.00854329,46908.0,46906.0,0.153291]
[1641000031467,6.0082867,46908.0,46906.0,0.153291]
[1641000031665,8.958e-05,46907.0,46906.0,0.153291]
[1641000036180,0.00869958,46907.0,46906.0,0.153291]
[1641000037379,0.00869958,46907.0,46906.0,0.673291]
[1641000037579,0.00869958,46907.0,46906.0,0.773291]
[1641000038631,0.00869958,46907.0,46906.0,0.79160025]
[1641000039131,0.00869958,46907.0,46906.0,0.84450025]
[1641000039331,0.00869958,46907.0,46906.0,0.8661104]
[1641000039531,0.00869958,46907.0,46906.0,0.84780115]
[1641000041034,0.00869958,46907.0,46906.0,0.84659318]
[1641000041235,0.00869958,46907.0,46906.0,0.86525328]
[1641000041481,0.00869958,46907.0,46906.0,0.8448511]
[1641000041683,1.97798164,46908.0,46906.0,2.24286168]
[1641000041883,0.03995216,46913.0,46912.0,1.13594552]
[1641000042084,0.03995216,46913.0,46912.0,1.54674688]
[1641000042284,3.99700004,46921.0,46916.0,0.216116]
[1641000042483,3.99700004,46921.0,46919.0,0.06121765]
[1641000042684,3.99700004,46921.0,46919.0,0.07803765]
[1641000043082,3.99700004,46921.0,46919.0,0.12803765]
[1641000043286,4.01422004,46921.0,46920.0,0.05]
[1641000043489,0.00275821,46929.0,46921.0,1.356086]
[1641000043688,0.00479193,46930.0,46929.0,0.00128416]
[1641000043883,0.00479193,46930.0,46929.0,0.28972916]
[1641000044083,0.00479193,46930.0,46929.0,0.33972916]
[1641000044284,0.00479193,46930.0,46929.0,0.38972916]
[1641000044484,0.00479193,46930.0,46929.0,0.48972916]
[1641000044687,0.00039193,46932.0,46929.0,0.341706]
[1641000044883,0.00039193,46932.0,46928.0,0.053261]
[1641000044884,0.00039193,46932.0,46925.0,0.106523]
[1641000044885,0.00039193,46932.0,46923.0,0.01100886]
[1641000045086,0.367143,46932.0,46923.0,0.00972516]
[1641000045338,0.367143,46932.0,46929.0,0.02116362]
[1641000045538,0.58287118,46931.0,46929.0,0.02116362]
[1641000045742,1.575,46930.0,46929.0,0.02116362]
[1641000045941,1.911525,46930.0,46929.0,0.02116362]
[1641000046543,2.36787622,46930.0,46923.0,0.00972516]
[1641000046742,0.09999999,46924.0,46923.0,0.00972516]
[1641000046942,1.05652499,46924.0,46923.0,0.00972516]
[1641000047345,1.13972,46923.0,46915.0,0.01804757]
[1641000047545,0.33781627,46919.0,46915.0,0.01804757]
[1641000047744,2.37083057,46916.0,46915.0,0.01804757]
[1641000048247,1.30618929,46916.0,46915.0,0.01804757]
[1641000048449,1.00602838,46916.0,46912.0,0.00594552]
[1641000048643,0.66950338,46916.0,46912.0,0.00594552]
[1641000048844,0.66950338,46916.0,46913.0,0.09999999]
[1641000049302,0.66950338,46916.0,46912.0,0.00594552]
[1641000049900,0.00242967,46926.0,46913.0,0.09999999]
[1641000050106,0.00372552,46926.0,46919.0,0.09999999]
[1641000050301,0.00242967,46926.0,46917.0,0.053283]
[1641000050502,0.00242967,46926.0,46914.0,0.09999999]
[1641000051106,0.29162781,46921.0,46914.0,0.09999999]
[1641000053348,0.29162781,46921.0,46915.0,0.10307608]
[1641000053546,0.29162781,46921.0,46914.0,0.09999999]
[1641000053946,9.011e-05,46920.0,46914.0,0.09999999]
[1641000054146,9.011e-05,46920.0,46915.0,0.053287]
[1641000054347,9.011e-05,46920.0,46914.0,0.09999999]
[1641000054747,9.011e-05,46920.0,46912.0,0.00594552]
[1641000055149,0.13622587,46919.0,46912.0,0.00594552]
[1641000055549,0.13596928,46919.0,46912.0,0.00594552]
[1641000055748,0.384385,46916.0,46912.0,0.00594552]
[1641000055949,0.336525,46915.0,46912.0,0.00594552]
[1641000056990,0.61281071,46915.0,46912.0,0.00594552]
[1641000058590,1.466525,46913.0,46912.0,0.00594552]
[1641000059189,0.336525,46913.0,46912.0,0.00594552]
[1641000059390,0.65023814,46913.0,46912.0,0.00594552]
[1641000060843,0.64523814,46913.0,46912.0,0.00594552]
[1641000062044,0.65384814,46913.0,46912.0,0.00594552]
[1641000062742,0.65384814,46913.0,46912.0,0.10594551]
[1641000062940,0.65384814,46913.0,46912.0,0.00594552]
[1641000063141,0.65503421,46913.0,46912.0,0.00594552]
[1641000063340,0.65503421,46913.0,46912.0,0.00094552]
[1641000064383,0.65512019,46913.0,46912.0,0.00094552]
[1641000065784,0.66373019,46913.0,46912.0,0.00094552]
[1641000067387,1.06373019,46913.0,46912.0,0.00094552]
[1641000067588,0.66373019,46913.0,46912.0,0.00094552]
[1641000068533,1.11790219,46913.0,46912.0,0.00094552]
[1641000069534,0.66373019,46913.0,46912.0,0.00094552]
[1641000070737,1.39240806,46913.0,46912.0,0.00094552]
[1641000071339,1.07395868,46913.0,46912.0,0.00094552]
[1641000072011,1.06534868,46913.0,46912.0,0.00094552]
[1641000073011,1.416525,46912.0,46908.0,0.27511288]
[1641000073211,0.336525,46912.0,46908.0,0.27511288]
[1641000073613,0.331525,46912.0,46908.0,0.27511288]
[1641000073810,0.145,46909.0,46908.0,0.27511288]
[1641000074013,0.74362861,46913.0,46908.0,0.27511288]
[1641000074616,1.06180201,46913.0,46908.0,0.27511288]
[1641000074813,0.336468,46912.0,46908.0,0.27511288]
[1641000075015,0.14,46909.0,46908.0,0.27511288]
[1641000075237,0.476468,46909.0,46908.0,0.27511288]
[1641000075636,0.47621148,46909.0,46908.0,0.27511288]
[1641000076234,0.336468,46909.0,46908.0,0.27511288]
[1641000076836,0.336468,46909.0,46908.0,0.32171288]
[1641000077636,0.42185181,46909.0,46908.0,0.32171288]
[1641000078038,0.336468,46909.0,46908.0,0.32171288]
[1641000078436,0.336468,46909.0,46908.0,0.34208534]
[1641000078636,0.42182865,46909.0,46908.0,0.34208534]
[1641000078840,0.33765418,46909.0,46908.0,0.34208534]
[1641000079079,0.33884922,46909.0,46908.0,0.34208534]
[1641000079482,0.42423121,46909.0,46908.0,0.36305127]
[1641000079682,0.42423121,46909.0,46908.0,0.34267881]
[1641000080483,0.42423121,46909.0,46908.0,0.3630405]
[1641000080683,0.42423121,46909.0,46908.0,0.34207457]
[1641000081484,0.42421169,46909.0,46908.0,0.36160109]
[1641000081685,0.33884922,46909.0,46908.0,0.3412394]
[1641000082084,0.33384922,46909.0,46908.0,0.3412394]
[1641000082488,0.33384922,46909.0,46908.0,0.35947194]
[1641000082753,0.33384922,46909.0,46908.0,0.33994542]
[1641000083144,0.32834922,46909.0,46908.0,0.43994541]
[1641000083346,0.00119504,46909.0,46908.0,0.43994541]
[1641000083544,0.00119504,46909.0,46908.0,0.45930775]
[1641000083745,0.00119504,46909.0,46908.0,0.44107521]
[1641000084948,0.00980504,46909.0,46908.0,0.34107522]
[1641000085150,0.00980504,46909.0,46908.0,0.36214534]
[1641000085348,0.00980504,46909.0,46908.0,0.342783]
[1641000085547,0.34635572,46909.0,46908.0,0.36153335]
[1641000085747,0.34635572,46909.0,46908.0,0.34046323]
[1641000086579,0.34635572,46909.0,46908.0,0.35960033]
[1641000086779,0.34635572,46909.0,46908.0,0.34084998]
[1641000087581,0.34635572,46909.0,46908.0,0.36003383]
[1641000087780,0.34635572,46909.0,46908.0,0.34089673]
[1641000088582,0.34635572,46909.0,46902.0,0.0097347]
[1641000088583,0.30183004,46908.0,46902.0,0.0097347]
[1641000088780,1.27974348,46903.0,46902.0,0.0097347]
[1641000088981,1.61621148,46903.0,46902.0,0.0097347]
[1641000089382,1.92031591,46903.0,46902.0,0.0097347]
[1641000089582,1.92031591,46903.0,46893.0,0.8925726]
[1641000089583,0.29066205,46898.0,46893.0,0.32209478]
[1641000089784,0.24263206,46893.0,46886.0,0.57047782]
[1641000089982,0.0012247,46893.0,46886.0,0.24140736]
[1641000090261,0.00120386,46886.0,46885.0,0.24140736]
[1641000090461,0.24140736,46885.0,46881.0,0.80066895]
[1641000090658,0.29950654,46882.0,46881.0,0.79566895]
[1641000090857,0.72981658,46882.0,46881.0,0.79566895]
[1641000091160,0.05463213,46882.0,46881.0,0.79566895]
[1641000091360,0.24140736,46885.0,46881.0,0.09999999]
[1641000091562,0.24140736,46885.0,46884.0,0.09999999]
[1641000092558,0.57787536,46885.0,46884.0,0.09999999]
[1641000093359,0.24140736,46885.0,46884.0,0.09999999]
[1641000093757,0.26126426,46885.0,46884.0,0.37289203]
[1641000093985,0.26126426,46885.0,46884.0,0.33563499]
[1641000094186,0.26126426,46885.0,46884.0,0.89563499]
[1641000094387,0.26126426,46885.0,46884.0,0.43563499]
[1641000094788,0.24140736,46885.0,46884.0,0.43563499]
[1641000094989,0.24140736,46885.0,46884.0,0.48895799]
[1641000095789,0.24140736,46885.0,46884.0,0.25332299]
[1641000095990,0.25001736,46885.0,46884.0,0.15332299]
[1641000096190,0.25001736,46885.0,46884.0,0.25332299]
[1641000096391,0.2500802,46885.0,46884.0,0.25332299]
[1641000096592,0.2500802,46885.0,46884.0,0.09999999]
[1641000105344,0.25127585,46885.0,46884.0,0.09999999]
[1641000105741,0.25127585,46885.0,46884.0,0.09499999]
[1641000107544,0.24127585,46885.0,46884.0,0.09499999]
[1641000107944,0.73127585,46885.0,46884.0,0.08499999]
[1641000108143,0.24127585,46885.0,46884.0,0.08499999]
[1641000108748,0.26217026,46885.0,46884.0,0.08499999]
[1641000109194,0.26217026,46885.0,46882.0,0.5682479]
[1641000109394,0.00128902,46883.0,46882.0,0.5682479]
[1641000109595,0.00126527,46882.0,46880.0,0.08499999]
[1641000110391,0.336468,46881.0,46880.0,0.08499999]
[1641000110592,0.47621148,46881.0,46880.0,0.08499999]
[1641000110792,0.47740722,46881.0,46880.0,0.08499999]
[1641000111301,0.7526625,46881.0,46877.0,0.01112674]
[1641000111492,0.61291902,46881.0,46877.0,0.01112674]
[1641000111693,0.6322503,46881.0,46880.0,0.08499999]
[1641000111893,0.4967385,46881.0,46880.0,0.08499999]
[1641000112749,0.27544157,46880.0,46877.0,0.0222577]
[1641000112938,0.336468,46879.0,46877.0,0.0222577]
[1641000113239,0.27544157,46880.0,46878.0,0.08499999]
[1641000113441,0.336468,46879.0,46878.0,0.08499999]
[1641000113840,0.35535676,46879.0,46878.0,0.08499999]
[1641000114838,0.37348081,46879.0,46878.0,0.08499999]
[1641000115040,0.35459205,46879.0,46878.0,0.08499999]
[1641000115838,0.35471508,46879.0,46878.0,0.08499999]
[1641000116241,0.35591088,46879.0,46878.0,0.08499999]
[1641000116883,0.64645467,46879.0,46878.0,0.08499999]
[1641000117084,0.62820759,46879.0,46878.0,0.08499999]
[1641000117385,0.62820759,46879.0,46866.0,0.1]
[1641000117386,0.35654692,46875.0,46866.0,0.1]
[1641000117584,0.35654692,46875.0,46867.0,0.235731]
[1641000118686,0.37713023,46875.0,46867.0,0.235731]
[1641000119386,0.02058331,46875.0,46867.0,0.235731]
[1641000119785,0.04202488,46875.0,46867.0,0.235731]
[1641000119985,0.02144157,46875.0,46867.0,0.289075]
[1641000120832,0.30593686,46875.0,46867.0,0.289075]
[1641000121033,0.28449529,46875.0,46867.0,0.289075]
[1641000121639,0.00119599,46874.0,46867.0,0.235731]
[1641000122933,0.00119599,46874.0,46867.0,0.230731]
[1641000125014,0.00093941,46874.0,46867.0,0.230731]
[1641000125612,0.00093941,46874.0,46867.0,0.225731]
[1641000127315,0.00123289,46874.0,46867.0,0.225731]
[1641000127613,0.00123289,46874.0,46866.0,0.053346]
[1641000127831,0.00123289,46874.0,46869.0,0.053343]
[1641000128031,0.00123289,46874.0,46870.0,0.5079687]
[1641000128235,0.00123289,46874.0,46870.0,0.225717]
[1641000128430,0.0153885,46876.0,46871.0,0.91]
[1641000128632,0.0153885,46876.0,46872.0,0.220704]
[1641000129032,0.60569224,46882.0,46875.0,0.22069]
[1641000129235,0.60569224,46884.0,46875.0,0.106652]
[1641000129434,0.60569224,46884.0,46874.0,0.33354212]
[1641000129632,0.60569224,46884.0,46874.0,0.43354212]
[1641000129833,0.01844144,46882.0,46874.0,0.43354212]
[1641000130032,0.01844144,46882.0,46878.0,0.6715739]
[1641000130231,0.01844144,46882.0,46879.0,0.327325]
[1641000130431,0.01844144,46882.0,46879.0,0.377325]
[1641000130632,0.01844144,46882.0,46880.0,0.05]
[1641000130835,0.01844144,46882.0,46881.0,0.220652]
[1641000131031,0.30859311,46885.0,46881.0,0.220652]
[1641000131235,0.30859311,46885.0,46880.0,0.05]
[1641000131485,0.30859311,46885.0,46879.0,0.253332]
[1641000131686,0.30859311,46885.0,46879.0,0.153332]
[1641000131889,0.33020606,46885.0,46879.0,0.1]
[1641000132089,0.31169315,46885.0,46878.0,0.7682479]
[1641000132286,0.31169315,46885.0,46878.0,0.7182479]
[1641000132488,2.34493067,46883.0,46878.0,0.7182479]
[1641000132889,2.34493067,46883.0,46877.0,0.106667]
[1641000133091,0.336511,46882.0,46876.0,0.5682479]
[1641000133291,0.00124396,46879.0,46876.0,0.5682479]
[1641000133489,0.00124396,46879.0,46875.0,0.5682479]
[1641000133490,0.2730574,46878.0,46875.0,0.5682479]
[1641000134293,0.3740435,46877.0,46871.0,0.5682479]
[1641000134694,0.3740435,46877.0,46871.0,0.6682479]
[1641000134891,0.3740435,46877.0,46871.0,0.1]
[1641000135092,0.3740435,46877.0,46870.0,0.6682479]
[1641000135349,0.00118705,46876.0,46870.0,0.6682479]
[1641000136349,0.053347,46875.0,46870.0,0.6682479]
[1641000136648,0.26928085,46876.0,46870.0,0.6682479]
[1641000136852,0.26741478,46876.0,46870.0,0.6682479]
[1641000137048,0.26372028,46876.0,46870.0,0.6682479]
[1641000137451,0.39281926,46877.0,46870.0,0.1]
[1641000137649,0.39281926,46877.0,46869.0,0.11752]
[1641000137650,0.32155109,46870.0,46869.0,0.06752]
[1641000137851,0.32155109,46870.0,46869.0,0.11752]
[1641000138453,0.32155109,46870.0,46869.0,0.05]
[1641000138991,0.34148885,46870.0,46869.0,0.05]
[1641000139992,0.34148885,46870.0,46865.0,0.05458436]
[1641000139993,0.36017479,46870.0,46865.0,0.05]
[1641000140195,0.34023703,46870.0,46865.0,0.05]
[1641000140396,0.34023703,46870.0,46864.0,0.05]
[1641000140796,0.34023703,46870.0,46863.0,0.05]
[1641000140996,0.34023703,46870.0,46862.0,0.153349]
[1641000140997,0.44764436,46865.0,46862.0,0.153349]
[1641000141198,0.44764436,46865.0,46863.0,0.220745]
[1641000141595,0.44764436,46865.0,46863.0,0.270745]
[1641000141996,0.4657992,46865.0,46863.0,0.270745]
[1641000142943,0.4657992,46865.0,46863.0,0.324093]
[1641000143143,0.46661469,46865.0,46863.0,0.424093]
[1641000143643,0.00119617,46864.0,46863.0,0.424093]
[1641000144243,0.00119617,46864.0,46863.0,0.370745]
[1641000144645,0.46288211,46865.0,46863.0,0.370745]
[1641000145045,0.48310849,46865.0,46863.0,0.15]
[1641000145345,0.46406691,46865.0,46863.0,0.15]
[1641000145846,0.46406691,46865.0,46863.0,0.05]
[1641000146046,0.48527659,46865.0,46861.0,0.11478894]
[1641000146249,0.46505021,46865.0,46862.0,0.220765]
[1641000146503,0.24966717,46863.0,46862.0,0.427466]
[1641000146702,0.24966717,46863.0,46862.0,0.374116]
[1641000146903,0.24966717,46863.0,46862.0,0.474116]
[1641000147504,0.24966717,46863.0,46862.0,0.420765]
[1641000148303,0.24966717,46863.0,46862.0,0.410765]
[1641000148603,0.24966717,46863.0,46862.0,0.320765]
[1641000148802,0.24966717,46863.0,46861.0,0.01143794]
[1641000149204,0.24966717,46863.0,46862.0,0.220766]
[1641000149406,0.24966717,46863.0,46861.0,0.01143794]
[1641000150255,0.24966717,46863.0,46861.0,0.002]
[1641000150948,0.23966717,46863.0,46861.0,0.002]
[1641000151354,0.23941039,46863.0,46861.0,0.002]
[1641000153155,0.23941039,46863.0,46862.0,0.220767]
[1641000153352,0.23941039,46863.0,46861.0,0.002]
[1641000153554,0.23941039,46863.0,46862.0,0.220766]
[1641000153753,0.23941039,46863.0,46861.0,0.002]
[1641000154213,0.23941039,46863.0,46862.0,0.220766]
[1641000154413,0.23941039,46863.0,46861.0,0.002]
[1641000154816,0.23941039,46863.0,46862.0,0.220766]
[1641000155017,0.23941039,46863.0,46861.0,0.002]
[1641000155219,0.04384556,46865.0,46862.0,0.220766]
[1641000155514,0.04384556,46865.0,46863.0,0.3322517]
[1641000155515,0.02195396,46865.0,46863.0,0.3322517]
[1641000155714,0.02195396,46865.0,46864.0,1.150755]
[1641000155913,0.02195396,46865.0,46864.0,0.220755]
[1641000156115,0.02195396,46865.0,46864.0,0.320755]
[1641000156514,0.02195396,46865.0,46864.0,0.3741]
[1641000157115,0.02195396,46865.0,46864.0,0.2741]
[1641000157316,0.02195396,46865.0,46864.0,0.3741]
[1641000157516,0.28041984,46870.0,46864.0,0.3741]
[1641000157768,0.36327819,46868.0,46864.0,0.1]
[1641000157949,0.36327819,46868.0,46861.0,0.01143716]
[1641000158349,0.2804857,46867.0,46861.0,0.01143716]
[1641000160149,0.3338427,46867.0,46861.0,0.01143716]
[1641000161154,0.35357052,46867.0,46861.0,0.01143716]
[1641000162089,0.37222867,46867.0,46861.0,0.01143716]
[1641000162290,0.34750085,46867.0,46861.0,0.01143716]
[1641000162691,0.63061771,46862.0,46861.0,0.02087452]
[1641000164191,0.64980847,46862.0,46861.0,0.02087452]
[1641000164394,0.65102038,46862.0,46861.0,0.02087452]
[1641000164596,0.31763576,46862.0,46861.0,1.452e-05]
[1641000164897,0.69988745,46862.0,46861.0,1.452e-05]
[1641000165252,1.44938431,46862.0,46861.0,1.452e-05]
[1641000165449,0.03999474,46860.0,46855.0,0.00979464]
[1641000165645,1.61625448,46856.0,46855.0,0.00979464]
[1641000165846,1.77227791,46856.0,46855.0,9.464e-05]
[1641000166046,0.38837382,46842.0,46841.0,0.56734254]
[1641000166446,0.38837382,46842.0,46839.0,0.68188919]
[1641000166647,0.38837382,46842.0,46831.0,0.67888919]
[1641000166849,0.44264982,46841.0,46831.0,0.67888919]
[1641000167048,0.2749065,46841.0,46831.0,0.67888919]
[1641000167246,0.24011538,46840.0,46830.0,1.1429]
[1641000167446,0.24011538,46840.0,46829.0,1.23343739]
[1641000167651,0.4087104,46834.0,46829.0,0.4279]
[1641000168050,0.4087104,46834.0,46832.0,0.4379]
[1641000168451,0.40993774,46834.0,46832.0,0.4379]
[1641000168648,0.13974348,46833.0,46832.0,0.4379]
[1641000168851,0.12974348,46833.0,46832.0,0.4379]
[1641000169111,0.264149,46833.0,46832.0,0.4379]
[1641000170511,0.30479823,46832.0,46827.0,6.0]
[1641000170714,0.053399,46830.0,46827.0,6.0]
[1641000171113,0.30479823,46832.0,46827.0,6.0]
[1641000171314,0.32369619,46832.0,46827.0,6.0]
[1641000171711,0.32343936,46832.0,46827.0,6.0]